fUST/lending_fUST_20251101
["ID","MTS","AMOUNT","RATE_DAILY","PERIOD"]
[392824829,1762003843951,-745.69879538,0.0004469,3]
[392824830,1762003843960,-2249.83902969,0.0004469,3]
[392824831,1762003843969,-500.0,0.00044698,120]
[392824832,1762003843978,-342.34936585,0.00044699,120]
[392824833,1762003843986,-58011.75906574,0.000447,2]
[392824834,1762003843998,-1085.0,0.000447,2]
[392824835,1762003844009,-6764.02221544,0.000447,2]
[392824871,1762004068558,220.0,0.00032,120]
[392824951,1762004843038,-200.0,0.00034,7]
[392824952,1762004843067,-450.8911106,0.0003819,4]
[392824953,1762004843095,-3698.2277788,0.0003819,20]
[392824954,1762004843165,-1239.98599985,0.0003819,20]
[392824955,1762004848925,-61.78622135,0.0003819,20]
[392824956,1762004848953,-4876.4375573,0.0003819,20]
[392824957,1762004848989,-123.5624427,0.0003819,20]
[392824958,1762004855608,5000.0,0.0003819,20]
[392824959,1762004980329,-5000.0,0.00038189,20]
[392824960,1762004983247,-5000.0,0.0003819,20]
[392824961,1762004986285,-241.79995754,0.000382,2]
[392824962,1762004986313,-151.68005488,0.0004,60]
[392824963,1762004986340,-265.73265585,0.0004,60]
[392824964,1762004987097,5000.0,0.00038189,20]
[392824965,1762004994927,3681.58466346,0.0004,2]
[392824966,1762004994954,872.65026654,0.0004,2]
[392824967,1762005014385,830.0,0.00025206,2]
[392825013,1762005032337,-251.07895342,0.00029028,2]
[392825015,1762005032346,-251.07895342,0.00029028,2]
[392825016,1762005032355,-251.07895342,0.00029028,2]
[392825018,1762005032364,-5000.0,0.00038189,20]
[392825020,1762005032374,-300.0,0.00039999,5]
[392825023,1762005032384,-300.0,0.00039999,5]
[392825025,1762005032393,-4749.674755,0.0004,2]
[392825082,1762005038225,-5250.325245,0.0004,2]
[392825084,1762005038235,-160.0,0.00040106,2]
[392825086,1762005038244,-294.1801458,0.00040498,2]
[392825088,1762005038254,-336.20588091,0.00040498,2]
[392825090,1762005038264,-167.34098538,0.00040513,2]
[392825092,1762005038274,-170.10537783,0.00040995,2]
[392825095,1762005038291,-149.30545013,0.00040995,2]
[392825097,1762005038302,-250.0,0.00042,120]
[392825099,1762005038311,-151.0,0.00043,90]
[392825101,1762005038321,-200.0,0.00044,120]
[392825103,1762005038331,-1329.10502123,0.0004432,2]
[392825105,1762005038342,-541.4,0.000444,41]
[392825107,1762005038353,-195.37483984,0.00044499,120]
[392825109,1762005038362,-500.0,0.00044499,120]
[392825111,1762005038372,-500.0,0.00044499,120]
[392825113,1762005038382,-500.0,0.00044499,2]
[392825115,1762005038391,-180.0,0.00044499,31]
[392825117,1762005038401,-286.40326173,0.00044499,120]
[392825119,1762005038412,-500.0,0.00044499,120]
[392825121,1762005038421,-440.35899185,0.00044499,2]
[392825123,1762005038432,-238.33039436,0.00044499,120]
[392825125,1762005038441,-191.92336262,0.000445,120]
[392825127,1762005038450,-271.92921328,0.000445,120]
[392825129,1762005038460,-188.72636763,0.000445,120]
[392825131,1762005038469,-971.45151169,0.000445,120]
[392825133,1762005038479,-15400.91283437,0.000445,2]
[392825172,1762005043235,-204.52948215,0.00044473,2]
[392825173,1762005043245,-275.42,0.0004449,10]
[392825174,1762005043255,-129293.97663077,0.000445,2]
[392825175,1762005043349,-3789.8,0.000445,2]
[392825186,1762005046330,-5818.65963116,0.000445,2]
[392825187,1762005046389,-3924.64822196,0.000445,2]
[392825188,1762005046448,-1805.64300152,0.000445,2]
[392825189,1762005054848,5000.0,0.000255,3]
[392825190,1762005077850,5000.0,0.000255,3]
[392825197,1762005100302,506.09729693,0.000255,3]
[392825229,1762005150186,218.7,0.00032877,120]
[392825232,1762005262649,310.4,0.00032877,120]
[392825233,1762005280045,567.86,0.00038193,20]
[392825243,1762005376249,-160.14609718,0.00039999,110]
[392825244,1762005376276,-88888.0,0.000444,60]
[392825245,1762005376301,-524.52595906,0.000445,120]
[392825246,1762005376325,-188.72636764,0.000445,120]
[392825247,1762005376348,-193.39660719,0.000445,120]
[392825248,1762005376372,-191.92336263,0.000445,120]
[392825249,1762005376399,-187.24692768,0.000445,120]
[392825250,1762005376422,-50029.30515306,0.000445,120]
[392825251,1762005376450,-500.0,0.00044589,120]
[392825252,1762005376473,-500.0,0.00044599,120]
[392825253,1762005376498,-500.0,0.00044599,120]
[392825254,1762005376522,-500.0,0.00044599,120]
[392825255,1762005376548,-500.0,0.00044599,120]
[392825256,1762005376573,-500.0,0.00044599,120]
[392825257,1762005376598,-500.0,0.00044599,120]
[392825258,1762005376623,-500.0,0.00044599,120]
[392825259,1762005376647,-500.0,0.00044599,120]
[392825260,1762005376672,-500.0,0.00044599,120]
[392825261,1762005376696,-500.0,0.00044599,120]
[392825262,1762005376720,-500.0,0.00044599,120]
[392825263,1762005376744,-206.99793087,0.00044599,120]
[392825264,1762005376769,-500.0,0.000446,120]
[392825265,1762005376793,-524.257638,0.000446,120]
[392825266,1762005376819,-500.0,0.00044699,120]
[392825267,1762005376842,-243.04831,0.000447,120]
[392825268,1762005376865,-154.665798,0.000447,120]
[392825269,1762005376889,-151.0,0.000447,120]
[392825270,1762005376915,-151.0,0.000447,120]
[392825271,1762005376939,-151.0,0.000447,120]
[392825272,1762005376962,-151.0,0.000447,120]
[392825273,1762005376987,-560.583779,0.000447,120]
[392825274,1762005377013,-560.583779,0.000447,120]
[392825275,1762005377038,-560.583779,0.000447,120]
[392825276,1762005377067,-560.583779,0.000447,120]
[392825277,1762005377091,-308.970672,0.000447,120]
[392825278,1762005377114,-308.970672,0.000447,120]
[392825279,1762005377139,-308.970672,0.000447,120]
[392825280,1762005377162,-308.970672,0.000447,120]
[392825281,1762005377185,-151.0,0.000447,120]
[392825282,1762005377210,-151.0,0.000447,120]
[392825283,1762005377234,-155.933781,0.000447,120]
[392825284,1762005377258,-224.894056,0.000447,120]
[392825285,1762005377283,-224.894056,0.000447,120]
[392825286,1762005377308,-224.894056,0.000447,120]
[392825287,1762005377332,-224.894056,0.000447,120]
[392825288,1762005377355,-161.328824,0.000447,120]
[392825289,1762005377379,-151.0,0.000447,120]
[392825290,1762005377402,-151.0,0.000447,120]
[392825291,1762005377426,-151.0,0.000447,120]
[392825292,1762005377449,-153.879368,0.000447,120]
[392825293,1762005377473,-151.0,0.000447,120]
[392825294,1762005377497,-151.0,0.000447,120]
[392825295,1762005377524,-151.0,0.000447,120]
[392825296,1762005377548,-151.0,0.000447,120]
[392825297,1762005377573,-151.0,0.000447,120]
[392825298,1762005377596,-151.0,0.000447,120]
[392825299,1762005377619,-162.373467,0.000447,120]
[392825300,1762005377642,-151.0,0.000447,120]
[392825301,1762005377666,-151.0,0.000447,120]
[392825302,1762005377689,-155.520612,0.000447,120]
[392825303,1762005377713,-151.0,0.000447,120]
[392825304,1762005377738,-155.168534,0.000447,120]
[392825305,1762005377764,-151.0,0.000447,120]
[392825306,1762005377789,-151.0,0.000447,120]
[392825307,1762005377813,-151.0,0.000447,120]
[392825308,1762005377836,-165.691456,0.000447,120]
[392825309,1762005377942,-179.84293,0.000447,120]
[392825310,1762005377968,-170.940346,0.000447,120]
[392825311,1762005377992,-151.0,0.000447,120]
[392825312,1762005378017,-151.0,0.000447,120]
[392825313,1762005378041,-202.631074,0.000447,120]
[392825314,1762005378069,-151.0,0.000447,120]
[392825315,1762005378093,-242.382288,0.000447,120]
[392825316,1762005378116,-151.0,0.000447,120]
[392825317,1762005378140,-151.0,0.000447,120]
[392825318,1762005378163,-151.0,0.000447,120]
[392825319,1762005378187,-151.0,0.000447,120]
[392825320,1762005378211,-364.07904027,0.000447,120]
[392825321,1762005378236,-152.068639,0.000447,120]
[392825322,1762005378261,-151.0,0.000447,120]
[392825323,1762005378285,-151.0,0.000447,120]
[392825324,1762005378308,-151.0,0.000447,120]
[392825325,1762005378332,-151.0,0.000447,120]
[392825326,1762005378356,-151.0,0.000447,120]
[392825327,1762005378381,-151.0,0.000447,120]
[392825328,1762005378405,-487.146056,0.000447,120]
[392825329,1762005378428,-151.0,0.000447,120]
[392825330,1762005378451,-487.146056,0.000447,120]
[392825331,1762005378475,-487.146056,0.000447,120]
[392825332,1762005378499,-151.0,0.000447,120]
[392825333,1762005378523,-487.146056,0.000447,120]
[392825334,1762005378548,-151.0,0.000447,120]
[392825335,1762005378572,-151.0,0.000447,120]
[392825336,1762005378597,-233.456909,0.000447,120]
[392825337,1762005378624,-157.413438,0.000447,120]
[392825338,1762005378649,-162.04839,0.000447,120]
[392825339,1762005378673,-151.0,0.000447,120]
[392825340,1762005378697,-151.0,0.000447,120]
[392825341,1762005378722,-231.590831,0.000447,120]
[392825342,1762005378746,-759.03,0.000447,120]
[392825343,1762005378771,-151.0,0.000447,120]
[392825344,1762005378794,-759.03,0.000447,120]
[392825345,1762005378818,-154.455577,0.000447,120]
[392825346,1762005378841,-759.03,0.000447,120]
[392825347,1762005378866,-759.03,0.000447,120]
[392825348,1762005378890,-151.0,0.000447,120]
[392825349,1762005378914,-151.0,0.000447,120]
[392825350,1762005378939,-151.0,0.000447,120]
[392825351,1762005378964,-202.216892,0.000447,120]
[392825352,1762005378987,-151.0,0.000447,120]
[392825353,1762005379010,-151.0,0.000447,120]
[392825354,1762005379033,-162.131716,0.000447,120]
[392825355,1762005379058,-162.131716,0.000447,120]
[392825356,1762005379082,-162.131716,0.000447,120]
[392825357,1762005379105,-162.131716,0.000447,120]
[392825358,1762005379130,-475.652085,0.000447,120]
[392825359,1762005379154,-475.652085,0.000447,120]
[392825360,1762005379177,-162.131716,0.000447,120]
[392825361,1762005379202,-475.652085,0.000447,120]
[392825362,1762005379224,-162.131716,0.000447,120]
[392825363,1762005379249,-475.652085,0.000447,120]
[392825364,1762005379272,-162.131716,0.000447,120]
[392825365,1762005379298,-162.131716,0.000447,120]
[392825366,1762005379326,-475.652085,0.000447,120]
[392825367,1762005379352,-475.652085,0.000447,120]
[392825368,1762005379378,-475.652085,0.000447,120]
[392825369,1762005379403,-475.652085,0.000447,120]
[392825370,1762005379428,-164.635929,0.0004479,120]
[392825371,1762005379452,-151.0,0.0004479,120]
[392825372,1762005379475,-151.0,0.0004479,120]
[392825373,1762005379498,-151.0,0.0004479,120]
[392825374,1762005379521,-244.101567,0.0004479,120]
[392825375,1762005379545,-151.0,0.0004479,120]
[392825376,1762005379569,-151.0,0.0004479,120]
[392825377,1762005379593,-151.0,0.0004479,120]
[392825378,1762005379617,-151.0,0.0004479,120]
[392825379,1762005379642,-153.741765,0.0004479,120]
[392825380,1762005379667,-151.0,0.0004479,120]
[392825381,1762005379692,-151.0,0.0004479,120]
[392825382,1762005379717,-151.0,0.0004479,120]
[392825383,1762005379741,-151.0,0.0004479,120]
[392825384,1762005379766,-151.0,0.0004479,120]
[392825385,1762005379791,-151.0,0.0004479,120]
[392825386,1762005379814,-151.0,0.0004479,120]
[392825387,1762005379838,-151.0,0.0004479,120]
[392825388,1762005379861,-151.0,0.0004479,120]
[392825389,1762005379885,-151.0,0.0004479,120]
[392825390,1762005379909,-151.0,0.0004479,120]
[392825391,1762005379935,-151.0,0.0004479,120]
[392825392,1762005379959,-151.0,0.0004479,120]
[392825393,1762005379983,-151.0,0.0004479,120]
[392825394,1762005380006,-151.0,0.0004479,120]
[392825395,1762005380030,-212.8257,0.0004479,120]
[392825396,1762005380056,-151.0,0.0004479,120]
[392825397,1762005380160,-161.455679,0.000448,120]
[392825398,1762005380185,-151.0,0.000448,120]
[392825399,1762005380211,-152.416193,0.000448,120]
[392825400,1762005380237,-195.238872,0.000448,120]
[392825401,1762005380263,-151.0,0.000448,120]
[392825402,1762005380289,-151.0,0.000448,120]
[392825403,1762005380313,-151.0,0.000448,120]
[392825404,1762005380337,-151.0,0.000448,120]
[392825405,1762005380361,-153.088738,0.000448,120]
[392825406,1762005380386,-231.955479,0.000448,120]
[392825407,1762005380411,-151.0,0.000448,120]
[392825408,1762005380434,-151.0,0.000448,120]
[392825409,1762005380458,-287.880775,0.000448,120]
[392825410,1762005380483,-287.880775,0.000448,120]
[392825411,1762005380510,-287.880775,0.000448,120]
[392825412,1762005380534,-287.880775,0.000448,120]
[392825413,1762005380558,-287.880775,0.000448,120]
[392825414,1762005380582,-287.880775,0.000448,120]
[392825415,1762005380605,-287.880775,0.000448,120]
[392825416,1762005380630,-287.880775,0.000448,120]
[392825417,1762005380658,-151.0,0.000448,120]
[392825418,1762005380685,-151.0,0.000448,120]
[392825419,1762005380708,-151.0,0.000448,120]
[392825420,1762005380733,-151.0,0.000448,120]
[392825421,1762005380757,-151.0,0.000448,120]
[392825422,1762005380783,-187.016508,0.000448,120]
[392825423,1762005380808,-151.0,0.000448,120]
[392825424,1762005380831,-157.818696,0.000448,120]
[392825425,1762005380856,-560.583779,0.000448,120]
[392825426,1762005380881,-560.583779,0.000448,120]
[392825427,1762005380906,-560.583779,0.000448,120]
[392825428,1762005380930,-560.583779,0.000448,120]
[392825429,1762005380954,-560.583779,0.000448,120]
[392825430,1762005380978,-560.583779,0.000448,120]
[392825431,1762005381002,-560.583779,0.000448,120]
[392825432,1762005381028,-560.583779,0.000448,120]
[392825433,1762005381054,-560.583779,0.000448,120]
[392825434,1762005381078,-560.583779,0.000448,120]
[392825435,1762005381102,-560.583779,0.000448,120]
[392825436,1762005381128,-560.583779,0.000448,120]
[392825437,1762005381150,-308.970672,0.000448,120]
[392825438,1762005381174,-308.970672,0.000448,120]
[392825439,1762005381204,-308.970672,0.000448,120]
[392825440,1762005381235,-308.970672,0.000448,120]
[392825441,1762005381265,-308.970672,0.000448,120]
[392825442,1762005381292,-308.970672,0.000448,120]
[392825443,1762005381322,-308.970672,0.000448,120]
[392825444,1762005381349,-308.970672,0.000448,120]
[392825445,1762005381377,-308.970672,0.000448,120]
[392825446,1762005381405,-308.970672,0.000448,120]
[392825447,1762005381435,-308.970672,0.000448,120]
[392825448,1762005381463,-308.970672,0.000448,120]
[392825449,1762005381492,-202.393106,0.000448,120]
[392825450,1762005381521,-151.0,0.000448,120]
[392825451,1762005381552,-224.894056,0.000448,120]
[392825452,1762005381580,-224.894056,0.000448,120]
[392825453,1762005381605,-224.894056,0.000448,120]
[392825454,1762005381631,-224.894056,0.000448,120]
[392825455,1762005381657,-224.894056,0.000448,120]
[392825456,1762005381686,-224.894056,0.000448,120]
[392825457,1762005381718,-224.894056,0.000448,120]
[392825458,1762005381749,-224.894056,0.000448,120]
[392825459,1762005381780,-224.894056,0.000448,120]
[392825460,1762005381810,-224.894056,0.000448,120]
[392825461,1762005381838,-224.894056,0.000448,120]
[392825462,1762005381863,-224.894056,0.000448,120]
[392825463,1762005381889,-151.0,0.000448,120]
[392825464,1762005381916,-151.0,0.000448,120]
[392825465,1762005381945,-151.0,0.000448,120]
[392825466,1762005381974,-151.0,0.000448,120]
[392825467,1762005381999,-224.253136,0.000448,120]
[392825468,1762005382028,-151.0,0.000448,120]
[392825469,1762005382058,-151.0,0.000448,120]
[392825470,1762005382088,-151.0,0.000448,120]
[392825471,1762005382116,-171.850702,0.000448,120]
[392825472,1762005382143,-151.0,0.000448,120]
[392825473,1762005382169,-240.222357,0.000448,120]
[392825474,1762005382197,-151.0,0.000448,120]
[392825475,1762005382224,-151.0,0.000448,120]
[392825476,1762005382253,-237.993509,0.000448,120]
[392825477,1762005382282,-219.232836,0.000448,120]
[392825478,1762005382311,-151.0,0.000448,120]
[392825479,1762005382340,-151.0,0.000448,120]
[392825480,1762005382368,-151.0,0.000448,120]
[392825481,1762005382396,-151.0,0.000448,120]
[392825482,1762005382535,-151.0,0.000448,120]
[392825483,1762005382561,-151.0,0.000448,120]
[392825484,1762005382586,-151.0,0.000448,120]
[392825485,1762005382612,-151.0,0.000448,120]
[392825486,1762005382635,-151.0,0.000448,120]
[392825487,1762005382659,-151.0,0.000448,120]
[392825488,1762005382684,-151.0,0.000448,120]
[392825489,1762005382708,-151.0,0.000448,120]
[392825490,1762005382733,-151.0,0.000448,120]
[392825491,1762005382757,-151.0,0.000448,120]
[392825492,1762005382782,-151.0,0.000448,120]
[392825493,1762005382808,-151.0,0.000448,120]
[392825494,1762005382833,-151.0,0.000448,120]
[392825495,1762005382860,-151.0,0.000448,120]
[392825496,1762005382886,-151.0,0.000448,120]
[392825497,1762005382910,-151.0,0.000448,120]
[392825498,1762005382934,-151.0,0.000448,120]
[392825499,1762005382958,-205.736806,0.000448,120]
[392825500,1762005382984,-151.0,0.000448,120]
[392825501,1762005383010,-151.0,0.000448,120]
[392825502,1762005383036,-279.919373,0.000448,120]
[392825503,1762005383062,-151.0,0.000448,120]
[392825504,1762005383086,-151.0,0.000448,120]
[392825505,1762005383112,-151.0,0.000448,120]
[392825506,1762005383137,-151.0,0.000448,120]
[392825507,1762005383161,-152.371675,0.000448,120]
[392825508,1762005383185,-487.146056,0.000448,120]
[392825509,1762005383210,-487.146056,0.000448,120]
[392825510,1762005383235,-151.0,0.000448,120]
[392825511,1762005383260,-152.166768,0.000448,120]
[392825512,1762005383284,-487.146056,0.000448,120]
[392825513,1762005383308,-487.146056,0.000448,120]
[392825514,1762005383337,-487.146056,0.000448,120]
[392825515,1762005383362,-487.146056,0.000448,120]
[392825516,1762005383387,-165.284887,0.000448,120]
[392825517,1762005383412,-487.146056,0.000448,120]
[392825518,1762005383437,-487.146056,0.000448,120]
[392825519,1762005383462,-151.0,0.000448,120]
[392825520,1762005383487,-151.0,0.000448,120]
[392825521,1762005383511,-151.0,0.000448,120]
[392825522,1762005383537,-151.0,0.000448,120]
[392825523,1762005383563,-151.0,0.000448,120]
[392825524,1762005383588,-167.976893,0.000448,120]
[392825525,1762005383614,-151.0,0.000448,120]
[392825526,1762005383639,-151.0,0.000448,120]
[392825527,1762005383663,-759.03,0.000448,120]
[392825528,1762005383689,-759.03,0.000448,120]
[392825529,1762005383716,-151.0,0.000448,120]
[392825530,1762005383742,-156.935939,0.000448,120]
[392825531,1762005383767,-759.03,0.000448,120]
[392825532,1762005383793,-759.03,0.000448,120]
[392825533,1762005383821,-759.03,0.000448,120]
[392825534,1762005383851,-759.03,0.000448,120]
[392825535,1762005383877,-759.03,0.000448,120]
[392825536,1762005383902,-759.03,0.000448,120]
[392825537,1762005383929,-151.0,0.000448,120]
[392825538,1762005383955,-170.836481,0.000448,120]
[392825539,1762005383981,-151.0,0.000448,120]
[392825540,1762005384006,-151.0,0.000448,120]
[392825541,1762005384031,-162.131716,0.000448,120]
[392825542,1762005384058,-162.131716,0.000448,120]
[392825543,1762005384083,-162.131716,0.000448,120]
[392825544,1762005384109,-475.652085,0.000448,120]
[392825545,1762005384134,-162.131716,0.000448,120]
[392825546,1762005384162,-475.652085,0.000448,120]
[392825547,1762005384189,-162.131716,0.000448,120]
[392825548,1762005384218,-162.131716,0.000448,120]
[392825549,1762005384248,-475.652085,0.000448,120]
[392825550,1762005384276,-475.652085,0.000448,120]
[392825551,1762005384303,-162.131716,0.000448,120]
[392825552,1762005384330,-162.131716,0.000448,120]
[392825553,1762005384357,-475.652085,0.000448,120]
[392825554,1762005384385,-475.652085,0.000448,120]
[392825555,1762005384411,-475.652085,0.000448,120]
[392825556,1762005384438,-475.652085,0.000448,120]
[392825557,1762005384465,-151.0,0.0004485,120]
[392825558,1762005384490,-151.0,0.00044932,60]
[392825559,1762005384515,-151.0,0.00044932,60]
[392825560,1762005384540,-151.0,0.00044932,60]
[392825561,1762005384566,-151.0,0.00044932,60]
[392825562,1762005384592,-151.0,0.00044932,60]
[392825563,1762005384618,-151.0,0.00044932,60]
[392825564,1762005384643,-153.309773,0.00044932,60]
[392825565,1762005384667,-153.321969,0.00044932,120]
[392825566,1762005384694,-560.583779,0.00044932,120]
[392825567,1762005384720,-560.583779,0.00044932,120]
[392825568,1762005384748,-560.583779,0.00044932,120]
[392825569,1762005384776,-560.583776,0.00044932,120]
[392825570,1762005384803,-308.970672,0.00044932,120]
[392825571,1762005384828,-308.970672,0.00044932,120]
[392825572,1762005384853,-308.970672,0.00044932,120]
[392825573,1762005384879,-308.970674,0.00044932,120]
[392825574,1762005384905,-224.894056,0.00044932,120]
[392825575,1762005384932,-224.894056,0.00044932,120]
[392825576,1762005384958,-224.894056,0.00044932,120]
[392825577,1762005384984,-224.894053,0.00044932,120]
[392825578,1762005385008,-487.146056,0.00044932,120]
[392825579,1762005385118,-487.146056,0.00044932,120]
[392825580,1762005385144,-487.146056,0.00044932,120]
[392825581,1762005385170,-487.146056,0.00044932,120]
[392825582,1762005385196,-151.0,0.00044932,120]
[392825583,1762005385223,-151.0,0.00044932,120]
[392825584,1762005385249,-151.510603,0.00044932,120]
[392825585,1762005385275,-759.03,0.00044932,120]
[392825586,1762005385301,-759.03,0.00044932,120]
[392825587,1762005385328,-759.03,0.00044932,120]
[392825588,1762005385355,-759.03,0.00044932,120]
[392825589,1762005385381,-263.711647,0.00044932,120]
[392825590,1762005385405,-162.131716,0.00044932,120]
[392825591,1762005385431,-162.131716,0.00044932,120]
[392825592,1762005385458,-475.652085,0.00044932,120]
[392825593,1762005385484,-162.131716,0.00044932,120]
[392825594,1762005385512,-475.652085,0.00044932,120]
[392825595,1762005385539,-162.13171,0.00044932,120]
[392825596,1762005385567,-475.652085,0.00044932,120]
[392825597,1762005385594,-475.65208267,0.00044932,120]
[392825598,1762005385620,-151.0,0.0004499,120]
[392825599,1762005385645,-151.0,0.0004499,120]
[392825600,1762005385670,-151.0,0.0004499,120]
[392825601,1762005385697,-151.0,0.0004499,120]
[392825602,1762005385723,-151.0,0.0004499,120]
[392825603,1762005385749,-183.985822,0.0004499,120]
[392825604,1762005385774,-287.880775,0.0004499,120]
[392825605,1762005385799,-287.880775,0.0004499,120]
[392825606,1762005385825,-287.880775,0.0004499,120]
[392825607,1762005385850,-287.880775,0.0004499,120]
[392825608,1762005385875,-287.880775,0.0004499,120]
[392825609,1762005385900,-287.880775,0.0004499,120]
[392825610,1762005385924,-287.880775,0.0004499,120]
[392825611,1762005385950,-287.880775,0.0004499,120]
[392825612,1762005385976,-151.0,0.0004499,120]
[392825613,1762005386001,-151.0,0.0004499,120]
[392825614,1762005386026,-151.0,0.0004499,120]
[392825615,1762005386051,-151.0,0.0004499,120]
[392825616,1762005386079,-151.0,0.0004499,120]
[392825617,1762005386104,-151.0,0.0004499,120]
[392825618,1762005386130,-151.0,0.0004499,60]
[392825619,1762005386158,-151.0,0.0004499,120]
[392825620,1762005386183,-151.0,0.0004499,120]
[392825621,1762005386207,-151.0,0.0004499,120]
[392825622,1762005386233,-59965.12738199,0.00045,120]
[392825623,1762005386260,-200.0,0.00045,120]
[392825624,1762005386287,-2498.21739423,0.00045,120]
[392825625,1762005386314,-151.0,0.00045,120]
[392825626,1762005386344,-240.115022,0.00045,120]
[392825627,1762005386371,-287.880775,0.00045,120]
[392825628,1762005386396,-287.880775,0.00045,120]
[392825629,1762005386421,-287.880775,0.00045,120]
[392825630,1762005386447,-287.88077,0.00045,120]
[392825631,1762005386477,-487.146056,0.00045,120]
[392825632,1762005386503,-487.146056,0.00045,120]
[392825633,1762005386528,-487.146056,0.00045,120]
[392825634,1762005386554,-487.146066,0.00045,120]
[392825635,1762005386578,-151.0,0.00045,120]
[392825636,1762005386603,-151.0,0.00045,120]
[392825637,1762005386629,-759.03,0.00045,120]
[392825638,1762005386654,-759.03,0.00045,120]
[392825639,1762005386679,-759.03,0.00045,120]
[392825640,1762005386704,-759.03,0.00045,120]
[392825641,1762005386731,-39904.18702749,0.00045333,120]
[392825642,1762005386757,-204.45,0.00045344,120]
[392825643,1762005386782,-203.67,0.00045344,120]
[392825644,1762005386808,-500.0,0.00045384,120]
[392825645,1762005386835,-398.0,0.00045414,120]
[392825646,1762005386861,-398.0,0.00045424,120]
[392825647,1762005386888,-398.0,0.00045434,120]
[392825648,1762005386914,-524.52595906,0.000458,120]
[392825649,1762005386939,-188.72636764,0.000458,120]
[392825650,1762005386966,-191.92336263,0.000458,120]
[392825651,1762005386993,-187.24692768,0.000458,120]
[392825652,1762005387019,-200.0,0.00046,120]
[392825653,1762005387047,-500.0,0.00046069,120]
[392825654,1762005387077,-155.0,0.000465,120]
[392825655,1762005387103,-429.61326752,0.000467,120]
[392825656,1762005387128,-500.0,0.00046754,120]
[392825657,1762005387153,-220.49435657,0.00047,60]
[392825658,1762005387179,-524.52595906,0.000472,120]
[392825659,1762005387205,-188.72636764,0.000472,120]
[392825660,1762005387231,-191.92336263,0.000472,120]
[392825661,1762005387257,-500.0,0.00047439,120]
[392825662,1762005387282,-200.0,0.00048,120]
[392825663,1762005387307,-380.44041343,0.00048124,120]
[392825664,1762005387333,-455.87462628,0.00048399,120]
[392825665,1762005387359,-438.96918533,0.00048399,120]
[392825666,1762005387385,-155.0,0.000484,120]
[392825667,1762005387411,-141899.88829057,0.000484,120]
[392825677,1762005604514,500.0,0.00025205,2]
[392825680,1762005604936,500.0,0.00025205,2]
[392825682,1762005605298,500.0,0.00025205,2]
[392825683,1762005606214,500.0,0.00025205,2]